fUSD/lending_fUSD_20251230
["ID","MTS","AMOUNT","RATE_DAILY","PERIOD"]
[400122186,1767136240415,-500.0,0.00042606,60]
[400122188,1767136240426,-150.0,0.00042606,2]
[400122191,1767136240437,-150.0,0.00042606,60]
[400122193,1767136240447,-150.0,0.00042606,60]
[400122195,1767136240457,-206.77098686,0.00042606,60]
[400122197,1767136240467,-150.0,0.00042606,60]
[400122199,1767136240478,-150.0,0.00042606,60]
[400122201,1767136240488,-150.0,0.00042606,60]
[400122205,1767136240509,-150.0,0.00042606,60]
[400122207,1767136240527,-150.0,0.00042606,60]
[400122210,1767136240543,-150.0,0.00042606,60]
[400122212,1767136240555,-190.61,0.0004263,90]
[400122214,1767136240566,-550.0,0.00042661,60]
[400122216,1767136240579,-150.0,0.00042661,60]
[400122218,1767136240590,-150.0,0.00042661,60]
[400122221,1767136240601,-502.0,0.00042661,60]
[400122223,1767136240615,-150.0,0.00042661,2]
[400122225,1767136240627,-150.0,0.00042661,60]
[400122228,1767136240640,-150.0,0.00042661,60]
[400122230,1767136240651,-150.0,0.00042661,60]
[400122232,1767136240663,-150.0,0.00042664,60]
[400122235,1767136240675,-161.79245406,0.00042716,60]
[400122237,1767136240685,-200.0,0.00042716,2]
[400122239,1767136240695,-150.0,0.00042716,60]
[400122241,1767136240706,-172.21833333,0.00042737,30]
[400122243,1767136240717,-3320.39536667,0.00042738,120]
[400122246,1767136240731,-478.18579265,0.00042738,120]
[400122248,1767136240744,-999.21765633,0.00042738,120]
[400122251,1767136240762,-202.20118435,0.00042738,120]
[400122253,1767136240773,-117.66560797,0.0004274,10]
[400122256,1767136240786,-175.62677308,0.0004274,10]
[400122258,1767136240799,-266.83322692,0.00042747,30]
[400122261,1767136240812,-1084.46677308,0.00042747,30]
[400122263,1767136240823,-2202.73049416,0.00042748,15]
[400122265,1767136240834,-2202.73049416,0.00042759,15]
[400122267,1767136240845,-1000.0,0.00042769,30]
[400122270,1767136240862,-2202.73049416,0.0004277,15]
[400122272,1767136240873,-172.21833333,0.0004277,30]
[400122275,1767136240884,-2202.73049416,0.00042781,15]
[400122277,1767136240895,-2202.73049416,0.00042793,15]
[400122279,1767136240906,-1000.0,0.00042798,14]
[400122281,1767136240916,-2202.73049416,0.00042804,15]
[400122284,1767136240928,-172.21833333,0.00042804,30]
[400122286,1767136240939,-1000.0,0.00042807,30]
[400122288,1767136240949,-2202.73049416,0.00042815,15]
[400122290,1767136240960,-2202.73049416,0.00042826,15]
[400122292,1767136240971,-4058.0,0.00042826,7]
[400122294,1767136240980,-113943.007037,0.00042827,4]
[400122296,1767136240990,-500.0,0.00042827,120]
[400122298,1767136241000,-486.7841417,0.00042827,120]
[400122301,1767136241010,-320.29005718,0.00042827,120]
[400122303,1767136241021,-500.0,0.00042827,120]
[400122305,1767136241031,-509.65734169,0.00042827,120]
[400122307,1767136241043,-524.20471173,0.00042827,120]
[400122309,1767136241053,-170914.510556,0.00042828,4]
[400122311,1767136241063,-151.0,0.00042834,120]
[400122313,1767136241074,-151.0,0.00042835,120]
[400122316,1767136241084,-226790.55973224,0.00042837,120]
[400122318,1767136241096,-500.0,0.00042837,120]
[400122320,1767136241106,-500.0,0.00042837,120]
[400122322,1767136241116,-163.18531183,0.00042837,30]
[400122324,1767136241127,-523.65,0.00042837,30]
[400122326,1767136241138,-2202.73049416,0.00042837,15]
[400122329,1767136241148,-999.0,0.00042837,120]
[400122332,1767136241166,-200.0,0.00042837,28]
[400122334,1767136241176,-642.94,0.00042837,28]
[400122336,1767136241188,-200.0,0.00042837,28]
[400122338,1767136241199,-500.0,0.00042837,28]
[400122341,1767136241215,-297.39282989,0.00042837,28]
[400122343,1767136241226,-200.0,0.00042837,28]
[400122345,1767136241237,-200.0,0.00042837,28]
[400122348,1767136241248,-200.0,0.00042837,28]
[400122350,1767136241258,-200.0,0.00042837,28]
[400122352,1767136241268,-150.0,0.00042837,120]
[400122354,1767136241279,-150.0,0.00042837,120]
[400122356,1767136241291,-1000.0,0.00042837,28]
[400122358,1767136241301,-2697.12068011,0.00042837,15]
[400122361,1767136241312,-172.21833333,0.00042837,30]
[400122363,1767136241323,-200.0,0.00042837,9]
[400122365,1767136241334,-207.4,0.00042837,9]
[400122367,1767136241344,-215.0738,0.00042837,9]
[400122369,1767136241355,-223.0315306,0.00042837,9]
[400122371,1767136241365,-231.28369723,0.00042837,9]
[400122373,1767136241377,-239.84119403,0.00042837,9]
[400122376,1767136241387,-248.71531821,0.00042837,9]
[400122377,1767136241397,-151.25683155,0.00042837,9]
[400122380,1767136241407,-1000.0,0.00042837,28]
[400122382,1767136241417,-1000.0,0.00042837,28]
[400122384,1767136241427,-1005.17202788,0.00042837,28]
[400122386,1767136241437,-574.12855637,0.00042837,28]
[400122388,1767136241447,-500.0,0.00042837,28]
[400122390,1767136241458,-500.0,0.00042837,28]
[400122391,1767136241468,-595.37131296,0.00042837,28]
[400122392,1767136241479,-500.0,0.00042837,28]
[400122393,1767136241488,-500.0,0.00042837,28]
[400122394,1767136241499,-617.40005154,0.00042837,28]
[400122395,1767136241509,-500.0,0.00042837,28]
[400122396,1767136241519,-500.0,0.00042837,28]
[400122397,1767136241529,-640.24385345,0.00042837,28]
[400122399,1767136241543,-500.0,0.00042837,28]
[400122401,1767136241553,-500.0,0.00042837,28]
[400122403,1767136241565,-467.04362269,0.00042837,28]
[400122405,1767136241579,-500.0,0.00042837,28]
[400122407,1767136241590,-500.0,0.00042837,28]
[400122409,1767136241600,-500.0,0.00042837,28]
[400122412,1767136241613,-500.0,0.00042837,28]
[400122414,1767136241623,-500.0,0.00042837,28]
[400122416,1767136241634,-500.0,0.00042837,28]
[400122418,1767136241645,-500.0,0.00042837,28]
[400122420,1767136241655,-500.0,0.00042837,28]
[400122422,1767136241667,-500.0,0.00042837,28]
[400122425,1767136241678,-500.0,0.00042837,28]
[400122427,1767136241688,-500.0,0.00042837,28]
[400122429,1767136241698,-500.0,0.00042837,28]
[400122431,1767136241708,-151.0,0.00042837,28]
[400122433,1767136241718,-500.0,0.00042837,28]
[400122435,1767136241728,-500.0,0.00042837,28]
[400122437,1767136241738,-151.0,0.00042837,28]
[400122439,1767136241748,-151.0,0.00042837,28]
[400122441,1767136241758,-151.0,0.00042837,28]
[400122443,1767136241768,-500.0,0.00042837,28]
[400122445,1767136241778,-151.0,0.00042837,28]
[400122447,1767136241788,-500.0,0.00042837,28]
[400122450,1767136241798,-151.0,0.00042837,28]
[400122452,1767136241808,-282.13607366,0.00042837,28]
[400122454,1767136241817,-151.0,0.00042837,28]
[400122456,1767136241827,-151.0,0.00042837,28]
[400122458,1767136241837,-151.0,0.00042837,28]
[400122460,1767136241846,-250.0,0.00042837,28]
[400122462,1767136241856,-151.0,0.00042837,28]
[400122464,1767136241866,-250.0,0.00042837,28]
[400122466,1767136241875,-151.0,0.00042837,28]
[400122468,1767136241885,-250.0,0.00042837,28]
[400122470,1767136241895,-250.0,0.00042837,28]
[400122472,1767136241905,-322.6107,0.00042837,28]
[400122474,1767136241915,-250.0,0.00042837,28]
[400122477,1767136241926,-334.5472959,0.00042837,28]
[400122479,1767136241942,-250.0,0.00042837,28]
[400122481,1767136241952,-250.0,0.00042837,28]
[400122483,1767136241962,-250.0,0.00042837,28]
[400122485,1767136241972,-250.0,0.00042837,28]
[400122488,1767136241983,-250.0,0.00042837,28]
[400122490,1767136241993,-500.0,0.00042837,28]
[400122492,1767136242003,-250.0,0.00042837,28]
[400122494,1767136242014,-500.0,0.00042837,28]
[400122496,1767136242025,-500.0,0.00042837,28]
[400122498,1767136242036,-500.0,0.00042837,28]
[400122501,1767136242047,-500.0,0.00042837,28]
[400122503,1767136242058,-500.0,0.00042837,28]
[400122505,1767136242068,-500.0,0.00042837,28]
[400122507,1767136242078,-500.0,0.00042837,28]
[400122509,1767136242088,-500.0,0.00042837,28]
[400122511,1767136242099,-500.0,0.00042837,28]
[400122513,1767136242109,-500.0,0.00042837,28]
[400122516,1767136242120,-1000000.0,0.00042838,2]
[400122518,1767136242134,-1000.0,0.00042838,2]
[400122520,1767136242145,-33529.0644,0.00042838,2]
[400122522,1767136242155,-1000.0,0.00042898,2]
[400122525,1767136242165,-1000.0,0.00042899,30]
[400122527,1767136242176,-1000.0,0.00042899,30]
[400122529,1767136242186,-253.0,0.000429,41]
[400122531,1767136242197,-150.0,0.00042932,30]
[400122533,1767136242207,-150.0,0.00042932,30]
[400122535,1767136242218,-151.0,0.00042934,120]
[400122537,1767136242228,-1000.0,0.00042934,30]
[400122539,1767136242239,-150.0,0.00042937,120]
[400122541,1767136242249,-59934.61328394,0.00042937,27]
[400122543,1767136242259,-2385117.46721239,0.00042937,7]
[400122547,1767136242278,-9347.2832205,0.00042937,7]
[400122549,1767136242290,-911.440902,0.00042937,7]
[400122551,1767136242302,-1517.46946338,0.00042937,7]
[400122890,1767136245760,-872.26117996,0.0001938,2]
[400122892,1767136245773,-359.63511905,0.0001938,2]
[400122894,1767136245787,-925.9169098,0.0001938,2]
[400122950,1767136246327,-1994.61084385,0.0001938,2]
[400122953,1767136246340,-2228.52430962,0.0001938,2]
[400122956,1767136246357,-1362.65454814,0.0001938,2]
[400122958,1767136246370,-501.46,0.0001938,2]
[400122961,1767136246387,-1110.06940007,0.0001938,2]
[400122963,1767136246400,-1800.00000001,0.0001938,2]
[400122965,1767136246413,-1098.0,0.0001938,2]
[400122978,1767136246619,-11143.05986518,0.0001938,2]
[400122980,1767136246632,-12613.98367604,0.0001938,2]
[400122986,1767136246681,-5309.58,0.0001938,2]
[400124455,1767136261879,195.0,0.00021318,120]
[400124549,1767136262873,195.0,0.00028151,120]
[400124717,1767136264992,300.0,0.00021317,120]
[400125007,1767136269406,-200.0,0.00019082,2]
[400125008,1767136269438,-300.0,0.00019379,2]
[400125009,1767136269468,-341.49347783,0.0001938,2]
[400125015,1767136503422,394.33,0.00013699,2]
[400125021,1767136738570,-500.0,0.00016113,2]
[400125022,1767136738608,-151.0,0.00017216,2]
[400125023,1767136738642,-151.0,0.00017216,2]
[400125024,1767136738675,-151.0,0.0001722,2]
[400125025,1767136738708,-151.0,0.0001722,2]
[400125026,1767136738741,-195.0,0.00017725,2]
[400125027,1767136738774,-250.0,0.00017725,2]
[400125028,1767136738808,-327.71597036,0.00017725,2]
[400125029,1767136738841,-200.37128802,0.00018892,2]
[400125030,1767136738874,-1183.561,0.00018992,2]
[400125031,1767136738908,-156.636,0.00018992,2]
[400125032,1767136738942,-935.1890913,0.0001937,2]
[400125033,1767136738976,-151.0,0.00019377,2]
[400125034,1767136739011,-293.0,0.00019378,2]
[400125035,1767136739056,-192.58366739,0.00019379,2]
[400125036,1767136741434,-381.27382205,0.00019379,2]
[400125037,1767136741464,-500.0,0.00019379,2]
[400125038,1767136741492,-500.0,0.00019379,2]
[400125039,1767136741523,-314.99106683,0.00019379,2]
[400125040,1767136741555,-158.0453707,0.00019379,2]
[400125041,1767136741603,-500.0,0.00019379,2]
[400125042,1767136741641,-500.0,0.00019379,2]
[400125043,1767136741677,-500.0,0.00019379,2]
[400125044,1767136741712,-500.0,0.00019379,2]
[400125045,1767136741745,-500.0,0.00019379,2]
[400125046,1767136741779,-500.0,0.00019379,2]
[400125047,1767136741814,-13.95413585,0.00019379,2]
[400125048,1767136747924,7688.536333,7.945e-05,2]
[400125051,1767136808420,2311.473667,7.945e-05,2]
[400125052,1767136808446,299.61184745,7.945e-05,2]
[400125053,1767136808469,3419.73326431,7.945e-05,2]
[400125054,1767136808499,841.87632324,7.945e-05,2]
[400125066,1767137254503,-1078.52712434,0.000162,5]
[400125067,1767137256253,-176.88943954,0.000162,5]
[400125068,1767137259129,-196.34804293,0.000162,5]
[400125070,1767137269226,-153.65871412,0.000162,5]
[400125071,1767137270847,-437.23700111,0.000162,5]
[400125072,1767137272403,-184.94993181,0.000162,5]
[400125073,1767137275267,-163.03828711,0.000162,5]
[400125074,1767137277613,-512.37073526,0.000162,5]
[400125081,1767137317582,4217.73887223,0.0001,2]
[400125093,1767137431367,-1790.78825886,0.00016119,2]
[400125094,1767137431380,-229.18944214,0.00016119,2]
[400125095,1767137431391,-748.00966555,0.000162,5]
[400125096,1767137431403,-452.91224315,0.000162,5]
[400125097,1767137431415,-265.84703492,0.000162,5]
[400125102,1767137431502,-15544.79440745,0.000162,5]
[400125103,1767137431512,-127.36328388,0.00016897,2]
[400125104,1767137431585,-23.63671612,0.00016897,2]
[400125105,1767137431596,-500.0,0.00016899,2]
[400125106,1767137431606,-128.66458953,0.00016899,2]
[400125107,1767137431618,-291.82915725,0.00016899,2]
[400125108,1767137431629,-241.51724674,0.00016899,2]
[400125109,1767137431642,-386.12344518,0.00016899,2]
[400125110,1767137431653,-266.89167543,0.00016899,2]
[400125111,1767137431663,-182.59305793,0.000169,2]
[400125112,1767137431679,-500.0,0.000169,2]
[400125113,1767137431691,-1271.76772929,0.000169,2]
[400125114,1767137431703,-1058.14032476,0.000169,2]
[400125115,1767137431719,-3673.29706504,0.000169,2]
[400125116,1767137431732,-5158.46961615,0.000169,2]
[400125117,1767137431744,-542.91191829,0.000169,2]
[400125137,1767137437562,-992.32972922,0.000169,2]
[400125138,1767137437574,-45973.48454611,0.000169,2]
[400125139,1767137437590,-724.07507002,0.000169,2]
[400125143,1767137437754,-4173.34297588,0.000169,2]
[400125336,1767137439640,-300.0,0.000169,2]
[400125338,1767137439652,-289.8433462,0.000169,2]
[400125340,1767137439663,-1433.86448772,0.000169,2]
[400125342,1767137439675,-19999.685214,0.000169,2]
[400125345,1767137439688,-913726.19491939,0.000169,2]
[400125347,1767137439697,-495373.28488824,0.00017,2]
[400125349,1767137439708,-151.0,0.00017059,2]
[400125351,1767137439718,-151.0,0.00017059,2]
[400125353,1767137439728,-151.0,0.00017075,2]
[400125355,1767137439737,-151.0,0.00017075,2]
[400125357,1767137439746,-303.79449806,0.00017095,2]
[400125359,1767137439756,-946.849,0.00018992,2]
[400125361,1767137439766,-156.636,0.00018992,2]
[400125363,1767137439775,-151.0,0.00019368,2]
[400125365,1767137439789,-151.0,0.00019368,2]
[400125367,1767137439799,-151.0,0.00019368,2]
[400125369,1767137439808,-151.0,0.00019368,2]
[400125371,1767137439818,-151.0,0.00019368,2]
[400125373,1767137439828,-151.0,0.00019368,2]
[400125405,1767137440121,-151.0,0.00019368,2]
[400125408,1767137440148,-151.0,0.00019368,2]
[400125411,1767137440159,-151.0,0.00019368,2]
[400125413,1767137440169,-151.0,0.00019368,2]
[400125415,1767137440179,-151.0,0.00019368,2]
[400125417,1767137440190,-151.0,0.00019368,2]
[400125419,1767137440200,-151.0,0.00019368,2]
[400125421,1767137440211,-151.0,0.00019368,2]
[400125423,1767137440221,-151.0,0.00019368,2]
[400125425,1767137440231,-151.0,0.00019368,2]
[400125427,1767137440241,-156.66897927,0.00019687,2]
[400125429,1767137440251,-394.33,0.00020187,2]
[400125431,1767137440261,-198.24437826,0.000206,4]
[400125435,1767137440284,-500.0,0.000207,2]
[400125437,1767137440297,-336.09910628,0.000207,2]
[400125439,1767137440308,-303.79449799,0.00020773,2]
[400125441,1767137440319,-1000.0,0.00021248,2]
[400125443,1767137440330,-354.5919825,0.00021796,2]
[400125446,1767137440341,-854.4,0.000222,7]
[400125448,1767137440353,-810.92,0.00022562,2]
[400125450,1767137440363,-150.99,0.00022562,2]
[400125452,1767137440375,-9999.99,0.00022562,2]
[400125454,1767137440385,-9999.99,0.00022562,2]
[400125456,1767137440396,-150.99,0.00022562,2]
[400125458,1767137440407,-156.66897925,0.00022994,2]
[400125460,1767137440418,-303.79449799,0.0002445,2]
[400125463,1767137440429,-151.0,0.00024797,7]
[400125465,1767137440439,-80116.1768232,0.000248,3]
[400125467,1767137440450,-156.66897925,0.00026302,2]
[400125469,1767137440460,-394.33,0.00026676,2]
[400125470,1767137440470,-564.0,0.00027163,2]
[400125471,1767137440480,-303.79449799,0.00028128,2]
[400125472,1767137440491,-156.66897925,0.00029609,2]
[400125473,1767137440501,-517.89,0.00029897,2]
[400125474,1767137440510,-260.98,0.000309,30]
[400125475,1767137440520,-303.79449799,0.00031805,2]
[400125476,1767137440531,-13314.86,0.00032384,2]
[400125477,1767137440541,-999.0,0.00032422,3]
[400125478,1767137440550,-1340.01,0.00032571,2]
[400125479,1767137440560,-156.66897925,0.00032916,2]
[400125480,1767137440570,-394.33,0.00033165,2]
[400125481,1767137440581,-1836.09,0.000333,14]
[400125482,1767137440591,-206.0,0.0003488,30]
[400125483,1767137440601,-33529.0644,0.00035015,2]
[400125485,1767137440611,-1017.54982568,0.00035088,2]
[400125487,1767137440622,-168.0,0.00035309,2]
[400125489,1767137440631,-303.79449799,0.00035483,2]
[400125491,1767137440641,-168.0,0.00035935,2]
[400125493,1767137440652,-168.0,0.00036084,2]
[400125495,1767137440661,-156.66897925,0.00036223,2]
[400125497,1767137440672,-168.0,0.00036534,2]
[400125499,1767137440682,-168.0,0.00036813,2]
[400125501,1767137440692,-206.0,0.0003689,30]
[400125503,1767137440702,-1000.0,0.00036981,2]
[400125506,1767137440712,-1017.54982568,0.00037671,2]
[400125508,1767137440723,-1000.0,0.000382,7]
[400125510,1767137440733,-150.0,0.00038638,7]
[400125512,1767137440744,-150.0,0.00038638,7]
[400125514,1767137440754,-150.0,0.00038638,7]
[400125516,1767137440764,-150.0,0.00038638,7]
[400125518,1767137440774,-150.0,0.00038638,7]
[400125520,1767137440784,-150.0,0.00038638,7]
[400125522,1767137440794,-242.77578513,0.00038638,7]
[400125524,1767137440804,-150.0,0.00038638,7]
[400125527,1767137440815,-206.0,0.0003891,30]
[400125529,1767137440825,-303.79449799,0.0003916,2]
[400125531,1767137440835,-156.66897925,0.00039531,2]
[400125533,1767137440845,-394.33,0.00039654,2]
[400125535,1767137440855,-152.0,0.00039684,3]
[400125537,1767137440865,-421.98553996,0.0004,7]
[400125539,1767137440875,-979.40068788,0.0004,7]
[400125541,1767137440885,-500.0,0.0004,7]
[400125543,1767137440894,-1017.54982568,0.00040255,15]
[400125545,1767137440904,-1000.0,0.000406,7]
[400125547,1767137440914,-206.0,0.0004093,30]
[400125549,1767137440924,-1633.86,0.00041095,120]
[400125551,1767137440934,-1633.86,0.00041095,120]
[400125553,1767137440945,-1633.86,0.00041095,120]
[400125555,1767137440954,-1633.86,0.00041095,120]
[400125557,1767137440965,-256.81689325,0.00041096,2]
[400125559,1767137440975,-259.11797235,0.00041676,7]
[400125562,1767137440985,-946.849,0.00041744,62]
[400125564,1767137440995,-200.0,0.00041814,120]
[400125566,1767137441005,-1000.0,0.00041999,120]
[400125568,1767137441015,-935.17734462,0.00042045,120]
[400125570,1767137441025,-150.0,0.00042442,60]
[400125572,1767137441035,-150.0,0.00042442,60]
[400125574,1767137441045,-150.0,0.00042442,60]
[400125576,1767137441055,-500.0,0.00042465,120]
[400125578,1767137441065,-500.0,0.00042465,120]
[400125580,1767137441075,-500.0,0.00042465,120]
[400125582,1767137441084,-500.0,0.00042465,120]
[400125584,1767137441094,-456.44904513,0.00042465,120]
[400125586,1767137441105,-150.0,0.00042497,60]
[400125588,1767137441115,-150.0,0.00042497,60]
[400125591,1767137441126,-150.0,0.00042552,60]
[400125593,1767137441136,-150.0,0.00042552,60]
[400125595,1767137441145,-150.0,0.00042606,60]
[400125597,1767137441155,-150.0,0.00042606,60]
[400125599,1767137441165,-999.0,0.00042627,120]
[400125601,1767137441175,-1633.86,0.00042627,120]
[400125603,1767137441190,-3574.1111314,0.00042628,2]
[400125605,1767137441200,-662.48,0.00042628,30]
[400125608,1767137441210,-168.90461355,0.00042661,60]
[400125610,1767137441222,-3051.0,0.00042799,7]
[400125612,1767137441232,-1836.09,0.000428,14]
[400125614,1767137441242,-183.58948,0.000428,30]
[400125616,1767137441253,-317.97791297,0.00042836,28]
[400125618,1767137441263,-322.6107,0.00042836,28]
[400125620,1767137441273,-627.57731337,0.00042836,28]
[400125622,1767137441283,-151.0,0.00042836,28]
[400125624,1767137441293,-151.0,0.00042836,28]
[400125626,1767137441304,-151.0,0.00042836,28]
[400125628,1767137441313,-151.0,0.00042836,28]
[400125630,1767137441323,-151.0,0.00042836,28]
[400125633,1767137441334,-151.0,0.00042836,28]
[400125635,1767137441344,-151.0,0.00042836,28]
[400125637,1767137441354,-151.0,0.00042836,28]
[400125639,1767137441363,-151.0,0.00042836,28]
[400125641,1767137441373,-151.0,0.00042836,28]
[400125643,1767137441382,-151.0,0.00042836,28]
[400125645,1767137441392,-250.0,0.00042836,28]
[400125647,1767137441402,-202.67282,0.00042836,28]
[400125649,1767137441412,-553.64373807,0.00042836,28]
[400125651,1767137441421,-500.0,0.00042836,28]
[400125653,1767137441431,-500.0,0.00042836,28]
[400125655,1767137441441,-500.0,0.00042836,28]
[400125657,1767137441451,-500.0,0.00042836,28]
[400125659,1767137441461,-500.0,0.00042836,28]
[400125661,1767137441472,-500.0,0.00042836,28]
[400125663,1767137441481,-500.0,0.00042836,28]
[400125665,1767137441492,-500.0,0.00042836,28]
[400125668,1767137441503,-500.0,0.00042836,28]
[400125670,1767137441513,-500.0,0.00042836,28]
[400125672,1767137441523,-500.0,0.00042836,28]
[400125674,1767137441533,-312.62449881,0.00042836,28]
[400125676,1767137441550,-500.0,0.00042836,28]
[400125678,1767137441560,-500.0,0.00042836,28]
[400125680,1767137441571,-500.0,0.00042836,28]
[400125682,1767137441580,-500.0,0.00042836,28]
[400125684,1767137441592,-500.0,0.00042836,28]
[400125687,1767137441602,-500.0,0.00042836,28]
[400125689,1767137441611,-1515.83742578,0.00042837,9]
[400125691,1767137441622,-593.18321592,0.00042837,2]
[400125693,1767137441632,-156.66897925,0.00042838,15]
[400125695,1767137441642,-1017.54982568,0.00042838,15]
[400125697,1767137441652,-163.18531183,0.00042838,30]
[400125699,1767137441662,-303.79449799,0.00042838,28]
[400125701,1767137441672,-3655.7669083,0.00042858,2]
[400125703,1767137441682,-253.0,0.000429,41]
[400125705,1767137441692,-151.40566504,0.000429,120]
[400125707,1767137441703,-662.48,0.00042902,30]
[400125710,1767137441713,-150.0,0.00042932,30]
[400125712,1767137441723,-150.0,0.00042932,30]
[400125714,1767137441733,-1000.0,0.00042933,30]
[400125715,1767137441742,-151.0,0.00042935,120]
[400125718,1767137441752,-1000.0,0.00042936,7]
[400125720,1767137441762,-1000.0,0.00042936,30]
[400125722,1767137441772,-1000.0,0.00042936,27]
[400125724,1767137441782,-200.0,0.00042937,7]
[400125726,1767137441791,-200.0,0.00042937,7]
[400125728,1767137441801,-1633.86,0.00042937,120]
[400125730,1767137441810,-1633.86,0.00042937,120]
[400125732,1767137441820,-1633.86,0.00042937,120]
[400125734,1767137441829,-1633.86,0.00042937,120]
[400125736,1767137441839,-1633.86,0.00042937,120]
[400125738,1767137441849,-1633.86,0.00042937,120]
[400125740,1767137441859,-1633.86,0.00042937,120]
[400125742,1767137441869,-1633.86,0.00042937,120]
[400125744,1767137441879,-1633.86,0.00042937,120]
[400125746,1767137441889,-1633.86,0.00042937,120]
[400125749,1767137441905,-1633.86,0.00042937,120]
[400125751,1767137441916,-1633.86,0.00042937,120]
[400125753,1767137441925,-1633.86,0.00042937,120]
[400125755,1767137441935,-1633.86,0.00042937,120]
[400125758,1767137441946,-1633.86,0.00042937,120]
[400125760,1767137441956,-1633.86,0.00042937,120]
[400125762,1767137441967,-1633.86,0.00042937,120]
[400125764,1767137441977,-1633.86,0.00042937,120]
[400125766,1767137441987,-1633.95477,0.00042937,120]
[400125768,1767137441997,-380.20532115,0.00042938,31]
[400125770,1767137442006,-80036.26515535,0.00042938,27]
[400125772,1767137442016,-151.0,0.00042938,120]
[400125774,1767137442026,-166.712782,0.00042938,120]
[400125776,1767137442036,-168.018285,0.00042938,120]
[400125778,1767137442046,-151.0,0.00042938,14]
[400125780,1767137442057,-151.0,0.00042938,120]
[400125782,1767137442067,-151.0,0.00042938,120]
[400125785,1767137442078,-151.0,0.00042938,120]
[400125787,1767137442088,-151.0,0.00042938,120]
[400125789,1767137442098,-151.0,0.00042938,120]
[400125791,1767137442108,-151.0,0.00042938,120]
[400125793,1767137442118,-151.0,0.00042938,120]
[400125795,1767137442127,-151.0,0.00042938,120]
[400125797,1767137442138,-162.674061,0.00042938,120]
[400125799,1767137442147,-151.0,0.00042938,30]
[400125802,1767137442158,-151.0,0.00042938,120]
[400125804,1767137442168,-176.876742,0.00042938,120]
[400125806,1767137442177,-163.104805,0.00042938,120]
[400125808,1767137442187,-163.104805,0.00042938,120]
[400125811,1767137442198,-163.104805,0.00042938,120]
[400125813,1767137442208,-163.104805,0.00042938,120]
[400125815,1767137442218,-163.104805,0.00042938,120]
[400125818,1767137442228,-163.104805,0.00042938,120]
[400125821,1767137442238,-163.104805,0.00042938,120]
[400125823,1767137442247,-163.104805,0.00042938,120]
[400125825,1767137442257,-163.104805,0.00042938,120]
[400125827,1767137442267,-163.104805,0.00042938,120]
[400125829,1767137442277,-163.104805,0.00042938,120]
[400125832,1767137442287,-163.104805,0.00042938,120]
[400125834,1767137442297,-163.104805,0.00042938,120]
[400125836,1767137442306,-163.104805,0.00042938,120]
[400125838,1767137442316,-163.104805,0.00042938,120]
[400125840,1767137442326,-163.104805,0.00042938,120]
[400125843,1767137442336,-163.104805,0.00042938,120]
[400125846,1767137442347,-163.104805,0.00042938,120]
[400125849,1767137442358,-163.104805,0.00042938,120]
[400125851,1767137442367,-163.104799,0.00042938,120]
[400125853,1767137442377,-151.0,0.00042938,120]
[400125855,1767137442387,-151.0,0.00042938,120]
[400125857,1767137442396,-280.474178,0.00042938,120]
[400125859,1767137442406,-156.673654,0.00042938,120]
[400125861,1767137442416,-233.207642,0.00042938,120]
[400125863,1767137442426,-156.673654,0.00042938,120]